fUSD/lending_fUSD_20251211
["ID","MTS","AMOUNT","RATE_DAILY","PERIOD"]
[398249125,1765461681799,-321.18670556,0.00015251,2]
[398249126,1765461684214,-312.79963433,0.00015251,2]
[398249127,1765461687515,-358.7087369,0.00015251,2]
[398249128,1765461690193,-243.04616353,0.00015251,2]
[398249129,1765461692867,-287.64933852,0.00015251,2]
[398249130,1765461694404,-201.50474477,0.00015251,2]
[398249131,1765461697051,-300.0,0.00015037,2]
[398249132,1765461699456,-276.24303693,0.00015037,2]
[398249133,1765461703290,-176.22021998,0.00015037,2]
[398249134,1765461705237,-1472.20474309,0.00015037,2]
[398249135,1765461705267,-170.359,0.00015037,2]
[398249136,1765461705299,-1602.30605258,0.00015251,2]
[398249137,1765461705354,-3510.27040866,0.00015251,2]
[398249138,1765461711635,-300.0,0.00015334,2]
[398249139,1765461711669,-516.47278895,0.00015335,2]
[398249140,1765461711699,-278.0,0.00015335,2]
[398249141,1765461711730,-300.0,0.00015342,2]
[398249142,1765461711760,-1200.0,0.00015342,2]
[398249143,1765461711790,-1200.0,0.00015343,2]
[398249144,1765461711820,-300.0,0.00015343,2]
[398249145,1765461711855,-160.70566298,0.00015343,2]
[398249146,1765461711886,-500.0,0.00015343,2]
[398249147,1765461711919,-221.88660928,0.00015343,2]
[398249148,1765461712103,-45.87987758,0.00015343,2]
[398249153,1765461803266,-500.0,0.00015251,2]
[398249154,1765461805976,-214.5697079,0.00015251,2]
[398249155,1765461807508,-158.07078198,0.00015251,2]
[398249156,1765461810117,-245.9663679,0.00015251,2]
[398249157,1765461812141,-184.34739504,0.00015251,2]
[398249158,1765461833156,-195.0,0.00015174,2]
[398249161,1765461848118,-55.0,0.00015174,2]
[398249162,1765461848141,-208.90658356,0.00015244,2]
[398249163,1765461853629,-496.07449058,0.00015244,2]
[398249164,1765461855708,-295.01892586,0.00015244,2]
[398249165,1765461855743,-3.40830196,0.00015251,2]
[398249168,1765461910494,250.0,0.00015,2]
[398249169,1765461923690,-30.40387286,0.00015251,2]
[398249170,1765461923716,-271.59612714,0.00015283,2]
[398249171,1765461929610,-312.69141157,0.00015283,2]
[398249172,1765461931754,-240.92022172,0.00015283,2]
[398249173,1765461934931,-241.85908082,0.00015283,2]
[398249174,1765461938720,-188.28527227,0.00015283,2]
[398249175,1765461941595,-161.41503457,0.00015283,2]
[398249176,1765461943748,-311.49556018,0.00015283,2]
[398249177,1765461945218,-309.51961887,0.00015283,2]
[398249178,1765461947090,-286.85221084,0.00015283,2]
[398249179,1765461949691,-215.54766289,0.00015283,2]
[398249180,1765461951119,-206.72992886,0.00015283,2]
[398249181,1765461952660,-355.45613029,0.00015283,2]
[398249182,1765461952699,175.63,0.00012296,2]
[398249183,1765461953355,-3715.91654632,0.00015283,2]
[398249184,1765461953381,-2568.17690736,0.00015283,2]
[398249185,1765461958928,-204.1206432,0.00015335,2]
[398249186,1765461958967,-1200.0,0.00015342,2]
[398249187,1765461959000,-300.0,0.00015342,2]
[398249188,1765461959033,-690.0,0.00015343,2]
[398249189,1765461959065,-300.0,0.00015343,2]
[398249190,1765461959100,-500.0,0.00015343,2]
[398249191,1765461959133,-500.0,0.00015343,2]
[398249192,1765461959165,-500.0,0.00015343,2]
[398249193,1765461959195,-151.0,0.00015343,2]
[398249194,1765461959230,-266.92447432,0.00015343,2]
[398249195,1765461959264,-145.34481717,0.00015343,2]
[398249196,1765461959294,-159.97356622,0.00015343,2]
[398249197,1765461959515,-165.28299818,0.00015343,2]
[398249198,1765461965934,-557.62789854,0.00015343,2]
[398249199,1765461965966,-300.0,0.00015343,2]
[398249200,1765461965997,-300.0,0.00015343,2]
[398249201,1765461966034,-300.08358708,0.00015343,2]
[398249202,1765461966119,-7084.58702876,0.00015344,2]
[398249207,1765462043735,-195.0,0.00015146,2]
[398249208,1765462045931,-379.91887995,0.00015146,2]
[398249209,1765462047933,-195.0,0.00015146,2]
[398249210,1765462049421,-166.66,0.00015146,2]
[398249211,1765462050889,-246.49284026,0.00015146,2]
[398249212,1765462054738,-197.43292463,0.00015146,2]
[398249213,1765462056286,-0.4810175,0.00015146,2]
[398249214,1765462056316,-1865.8927,0.00015244,2]
[398249215,1765462056371,-6267.262565,0.00015244,2]
[398249216,1765462058028,-241.16559574,0.00015244,2]
[398249217,1765462061325,-219.4470462,0.00015244,2]
[398249218,1765462063341,-231.90251636,0.00015244,2]
[398249219,1765462064399,-532.2926767,0.00015244,2]
[398249220,1765462064431,-300.0,0.00015343,2]
[398249221,1765462064461,-242.01445149,0.00015344,2]
[398249222,1765462064529,-7851.39574362,0.00015344,2]
[398249226,1765462088614,-354.66765515,0.00015271,2]
[398249229,1765462091302,-154.87400577,0.00015271,2]
[398249230,1765462093374,-173.24110626,0.00015271,2]
[398249231,1765462096254,-154.48327391,0.00015271,2]
[398249232,1765462098924,-187.40482482,0.00015271,2]
[398249233,1765462100705,-210.45714246,0.00015271,2]
[398249234,1765462102284,-73.32102786,0.00015271,2]
[398249235,1765462102311,-150.5515981,0.00015308,2]
[398249236,1765462135835,-44.4484019,0.00015308,2]
[398249237,1765462135879,-9911.1131962,0.00015344,2]
[398249238,1765462143021,-1000.0,0.00015299,3]
[398249239,1765462143054,-300.0,0.00015343,2]
[398249240,1765462143085,-300.0,0.00015343,2]
[398249241,1765462143160,-6800.01,0.00015344,2]
[398249242,1765462148166,-324.18661081,0.00015271,2]
[398249245,1765462150812,-188.25604568,0.00015271,2]
[398249246,1765462153017,-165.50579755,0.00015271,2]
[398249247,1765462154483,-334.05700596,0.00015271,2]
[398249248,1765462158759,-336.14794654,0.00015271,2]
[398249249,1765462160936,-163.89385685,0.00015271,2]
[398249250,1765462164101,-256.54985653,0.00015271,2]
[398249251,1765462167112,-521.12064652,0.00015271,2]
[398249252,1765462168801,-374.76939719,0.00015271,2]
[398249253,1765462170358,-158.98582877,0.00015271,2]
[398249254,1765462172722,-229.42469353,0.00015271,2]
[398249255,1765462174240,-154.60721945,0.00015271,2]
[398249256,1765462176300,-281.2726,0.00015244,2]
[398249257,1765462176602,-150.14956955,0.00015271,2]
[398249258,1765462177740,-283.58689795,0.00015271,2]
[398249259,1765462179498,-276.69710958,0.00015271,2]
[398249260,1765462180673,-398.31182472,0.00015271,2]
[398249261,1765462182857,-203.05923496,0.00015271,2]
[398249262,1765462186330,-320.48574265,0.00015271,2]
[398249263,1765462190243,-206.64521273,0.00015244,2]
[398249264,1765462193922,-184.64389081,0.00015244,2]
[398249265,1765462195473,-308.68308584,0.00015244,2]
[398249266,1765462197485,-213.56619461,0.00015244,2]
[398249267,1765462199121,-86.46161601,0.00015244,2]
[398249268,1765462199144,-296.68233246,0.00015271,2]
[398249269,1765462201193,-447.79589464,0.00015271,2]
[398249270,1765462202667,-651.0,0.00015271,2]
[398249271,1765462205497,-217.6618747,0.00015271,2]
[398249272,1765462207581,-437.4270472,0.00015271,2]
[398249275,1765462212945,-205.66655264,0.00015271,2]
[398249276,1765462215122,-298.7627106,0.00015271,2]
[398249277,1765462216550,-245.21085015,0.000152,2]
[398249278,1765462218677,-168.86440661,0.000152,2]
[398249279,1765462221808,-440.70208798,0.000152,2]
[398249280,1765462224329,-191.5009891,0.000152,2]
[398249281,1765462226619,-227.18371677,0.000152,2]
[398249282,1765462226641,-272.81628323,0.00015244,2]
[398249283,1765462229762,-513.8056682,0.00015244,2]
[398249284,1765462231598,-300.65381628,0.00015244,2]
[398249286,1765462232095,-427.13399201,0.00015244,2]
[398249287,1765462232153,-713.61384028,0.00015244,2]
[398249288,1765462232163,-13513.8975,0.00015244,2]
[398249289,1765462232172,-1666.8688,0.00015244,2]
[398249290,1765462232182,-4260.03844031,0.00015271,2]
[398249291,1765462232192,-1200.0,0.00015343,2]
[398249292,1765462232201,-300.0,0.00015343,2]
[398249293,1765462232211,-6616.52783567,0.00015344,2]
[398249294,1765462232222,-326.58769091,0.00015344,2]
[398249295,1765462232233,-5197.19040461,0.00015344,2]
[398249296,1765462232244,-82528.42358767,0.00015344,2]
[398249297,1765462232255,-47707.32910342,0.00015344,2]
[398249298,1765462232266,-19175.29869112,0.00015344,2]
[398249299,1765462232329,-1501.99056459,0.00015344,2]
[398249302,1765462238431,-15085.29686637,0.00015344,2]
[398249335,1765462242015,-1.7e-07,0.00015344,2]
[398249336,1765462242252,-673.8191345,0.00015344,2]
[398249337,1765462242264,-331.78576583,0.00015344,2]
[398249352,1765462243374,166.66,0.0001467,2]
[398249353,1765462243386,-9360.5419525,0.00015344,2]
[398249354,1765462243397,-1612.92171078,0.00015344,2]
[398249355,1765462243625,166.66,0.00014979,2]
[398249358,1765462246249,-166.66,0.00015288,2]
[398249359,1765462246259,-2344.54327443,0.00015344,2]
[398249363,1765462263403,-300.0,0.00015343,2]
[398249364,1765462263443,-151.0,0.00015344,2]
[398249365,1765462263481,-242.01445149,0.00015344,2]
[398249366,1765462263608,-8613.98109702,0.00015344,2]
[398249367,1765462263638,-10000.01,0.00015344,2]
[398249368,1765462263770,-10000.01,0.00015344,2]
[398249369,1765462263902,-10000.01,0.00015344,2]
[398249370,1765462263968,-383.97099075,0.00015344,2]
[398249371,1765462264032,-10000.01,0.00015344,2]
[398249372,1765462264561,-10000.01,0.00015344,2]
[398249373,1765462264633,-233.34423692,0.00015344,2]
[398249374,1765462264664,-9766.66576308,0.00015344,2]
[398249375,1765462264680,-233.34423692,0.00015344,2]
[398249376,1765462264699,-9533.32152616,0.00015344,2]
[398249377,1765462264742,-10000.01,0.00015344,2]
[398249380,1765462277367,-10000.01,0.00015344,2]
[398249381,1765462277533,-10000.01,0.00015344,2]
[398249382,1765462277675,-10000.01,0.00015344,2]
[398249383,1765462277835,-10000.01,0.00015344,2]
[398249384,1765462277960,-10000.01,0.00015344,2]
[398249385,1765462278144,-1000.0,0.00015343,2]
[398249386,1765462278181,-8000.01,0.00015344,2]
[398249387,1765462278274,-10000.01,0.00015344,2]
[398249388,1765462278541,-10000.01,0.00015344,2]
[398249389,1765462278801,-10000.01,0.00015344,2]
[398249390,1765462282945,583.09,0.00013699,2]
[398249391,1765462288287,-10000.01,0.00015344,2]
[398249392,1765462294450,-626.98469715,0.00015343,2]
[398249393,1765462294483,-500.0,0.00015343,2]
[398249394,1765462294516,-500.0,0.00015343,2]
[398249395,1765462294547,-350.0,0.00015343,2]
[398249396,1765462294630,-6046.0406057,0.00015344,2]
[398249397,1765462297782,-10000.01,0.00015344,2]
[398249398,1765462298068,-10000.01,0.00015344,2]
[398249399,1765462298204,-10000.01,0.00015344,2]
[398249400,1765462298378,-10000.01,0.00015344,2]
[398249401,1765462304772,-768.09118355,0.00015257,2]
[398249402,1765462304795,-8463.8276329,0.00015257,2]
[398249403,1765462308241,-10000.01,0.00015344,2]
[398249404,1765462308411,-500.0,0.00015343,2]
[398249405,1765462308468,-500.0,0.00015343,2]
[398249406,1765462308477,-8500.01,0.00015344,2]
[398249407,1765462308683,-500.0,0.00015343,2]
[398249408,1765462308719,-500.0,0.00015343,2]
[398249409,1765462308756,-500.0,0.00015343,2]
[398249410,1765462308790,-500.0,0.00015343,2]
[398249411,1765462308825,-250.09011254,0.00015343,2]
[398249412,1765462308958,-500.0,0.00015343,2]
[398249413,1765462308993,-500.0,0.00015343,2]
[398249414,1765462309048,-4499.82977492,0.00015344,2]
[398249415,1765462309063,-500.0,0.00015344,2]
[398249416,1765462309079,-500.0,0.00015344,2]
[398249417,1765462309101,-8000.01,0.00015344,2]
[398249540,1765462589611,5275.87789,0.00014976,2]
[398249580,1765462750808,-300.0,0.00015052,2]
[398249581,1765462750838,-300.0,0.00015062,2]
[398249582,1765462750869,-250.0,0.00015071,2]
[398249583,1765462750899,-427.73629053,0.0001514,2]
[398249584,1765462750928,-1200.0,0.00015199,2]
[398249585,1765462750959,-300.0,0.00015199,2]
[398249586,1765462750990,-1144.89290664,0.000152,2]
[398249587,1765462751136,-2154.75160566,0.000152,2]
[398249589,1765462753483,-528.61972235,0.000152,2]
[398249590,1765462753513,-8942.7705553,0.000152,2]
[398249592,1765462763318,-1340.05817534,0.000152,2]
[398249593,1765462763346,-7319.89364932,0.000152,2]
[398249599,1765462829026,300.0,0.00014795,2]
[398249601,1765462844628,500.0,0.00014952,2]
[398249603,1765462846694,300.0,0.00014932,2]
[398249608,1765462855815,300.0,0.00014795,2]
[398249610,1765462862716,250.0,0.00015,2]
[398249611,1765462868516,300.0,0.00014959,2]
[398249617,1765462896629,3073.663,0.00014939,2]
[398249618,1765462896743,170.359,0.00014939,2]
[398249623,1765462935193,500.0,0.00014959,2]
[398249624,1765462965602,706.88,0.00014419,2]
[398249637,1765463017711,166.66,0.00014811,2]
[398249638,1765463031193,-231.02384457,0.00015124,2]
[398249639,1765463031216,-276.0,0.00015124,2]
[398249640,1765463031236,-701.37105337,0.00015124,2]
[398249644,1765463058434,771.57,0.00014394,2]
[398249652,1765463124240,150.0,0.0001439,2]
[398249662,1765463172747,-217.0,0.00015143,2]
[398249663,1765463172779,-300.0,0.00015143,2]
[398249664,1765463172813,-1200.0,0.00015143,2]
[398249665,1765463172846,-393.93807949,0.00015143,2]
[398249666,1765463172879,-300.0,0.00015144,2]
[398249667,1765463172909,-1871.58524102,0.00015144,2]
[398249668,1765463172923,-217.0,0.00015144,2]
[398249669,1765463172937,-300.0,0.00015144,2]
[398249670,1765463172950,-917.96335898,0.00015144,2]
[398249671,1765463172959,-282.03664102,0.00015144,2]
[398249672,1765463172975,-393.93807949,0.00015144,2]
[398249673,1765463172986,-300.0,0.00015144,2]
[398249674,1765463173006,-24.02527949,0.00015144,2]
[398249675,1765463173015,-806.0184,0.00015144,2]
[398249676,1765463173025,-300.0,0.00015154,2]
[398249677,1765463173034,-2176.50492051,0.00015172,2]
[398249678,1765463173071,-149.46281674,0.00015172,2]
[398249679,1765463173092,-9701.08436652,0.00015172,2]
[398249680,1765463173102,-149.46281674,0.000152,2]
[398249681,1765463173140,-1165.72018307,0.000152,2]
[398249682,1765463173157,-7668.56963386,0.000152,2]
[398249683,1765463173167,-1000.0,0.00015216,2]
[398249684,1765463173177,-165.72018307,0.00015216,2]
[398249685,1765463173216,-1215.26547927,0.00015216,2]
[398249686,1765463173250,-870.55,0.00015221,2]
[398249687,1765463173284,-300.0,0.00015234,2]
[398249688,1765463173319,-200.0,0.00015235,2]
[398249689,1765463173353,-500.0,0.00015235,2]
[398249690,1765463173388,-500.0,0.00015235,2]
[398249691,1765463173423,-500.0,0.00015235,2]
[398249692,1765463173457,-500.0,0.00015235,2]
[398249693,1765463173491,-328.37904146,0.00015235,2]
[398249694,1765463173505,-171.62095854,0.00015235,2]
[398249695,1765463173516,-500.0,0.00015235,2]
[398249696,1765463173526,-300.0,0.00015235,2]
[398249697,1765463173536,-243.64452073,0.00015235,2]
[398249698,1765463173548,-256.35547927,0.00015235,2]
[398249699,1765463173557,-500.0,0.00015235,2]
[398249700,1765463173567,-114.19452073,0.00015235,2]
[398249701,1765463173578,-300.0,0.00015235,2]
[398249702,1765463173595,-85.80547927,0.00015235,2]
[398249703,1765463173608,-114.19452073,0.00015235,2]
[398249704,1765463173653,-85.80547927,0.00015235,2]
[398249705,1765463173689,-500.0,0.00015235,2]
[398249706,1765463173721,-500.0,0.00015235,2]
[398249707,1765463173756,-1111.0,0.00015235,2]
[398249708,1765463173790,-967.0,0.00015235,2]
[398249709,1765463173824,-151.0,0.00015235,2]
[398249710,1765463174103,-250.0,0.00015238,2]
[398249711,1765463174137,-500.0,0.00015243,2]
[398249712,1765463174175,-500.0,0.00015243,2]
[398249713,1765463174208,-301.65904146,0.00015243,2]
[398249714,1765463174225,-267.08095854,0.00015243,2]
[398249715,1765463174234,-232.91904146,0.00015243,2]
[398249716,1765463174247,-305.54731915,0.00015243,2]
[398249717,1765463174257,-194.45268085,0.00015243,2]
[398249718,1765463174269,-320.89923631,0.00015243,2]
[398249719,1765463174279,-179.10076369,0.00015243,2]
[398249720,1765463174290,-60.2577047,0.00015243,2]
[398249721,1765463174301,-439.7422953,0.00015243,2]
[398249722,1765463174312,-60.2577047,0.00015243,2]
[398249723,1765463174321,-439.7422953,0.00015243,2]
[398249724,1765463174336,-85.80547927,0.00015243,2]
[398249725,1765463174351,-0.32222543,0.00015243,2]
[398249726,1765463174360,-155.3206265,0.00015243,2]
[398249727,1765463174372,-344.35714807,0.00015243,2]
[398249728,1765463174384,-117.62434828,0.00015243,2]
[398249729,1765463174393,-382.37565172,0.00015243,2]
[398249730,1765463174433,-239.85658301,0.00015243,2]
[398249731,1765463174451,-1111.0,0.00015244,2]
[398249732,1765463174463,-967.0,0.00015244,2]
[398249733,1765463174473,-151.0,0.00015244,2]
[398249734,1765463174488,-250.0,0.00015244,2]
[398249735,1765463174520,-500.0,0.00015244,2]
[398249736,1765463174543,-500.0,0.00015244,2]
[398249737,1765463174554,-568.74,0.00015244,2]
[398249738,1765463174581,-239.85658301,0.00015244,2]
[398249739,1765463174603,-9520.29683398,0.00015244,2]
[398249740,1765463174614,-10000.01,0.00015244,2]
[398249741,1765463174624,-10000.01,0.00015244,2]
[398249742,1765463174637,-10000.01,0.00015244,2]
[398249743,1765463187202,-10000.01,0.00015244,2]
[398249744,1765463187564,-10000.01,0.00015244,2]
[398249745,1765463187724,-10000.01,0.00015244,2]
[398249746,1765463187894,-10000.01,0.00015244,2]
[398249747,1765463188026,-10000.01,0.00015244,2]
[398249748,1765463188157,-10000.01,0.00015244,2]
[398249749,1765463188290,-10000.01,0.00015244,2]
[398249750,1765463188404,-10000.01,0.00015244,2]
[398249751,1765463188536,-10000.01,0.00015244,2]
[398249760,1765463264686,1615.32849281,0.00025,120]
[398249761,1765463270643,212.36686481,0.00015075,2]
[398249771,1765463369799,-193.9816,0.00015144,2]
[398249772,1765463369828,-3454.0799,0.00015144,2]
[398249773,1765463369851,-193.9816,0.00015144,2]
[398249774,1765463369863,-3454.0799,0.00015144,2]
[398249775,1765463369874,-2703.887,0.00015144,2]
[398249776,1765463370004,-10000.01,0.00015144,2]
[398249777,1765463370140,-10000.01,0.00015144,2]
[398249778,1765463376313,-10000.01,0.00015144,2]
[398249779,1765463376324,-10000.01,0.00015144,2]
[398249780,1765463376346,-10000.01,0.00015144,2]
[398249783,1765463382360,-10000.01,0.00015144,2]
[398249784,1765463382554,-10000.01,0.00015144,2]
[398249785,1765463382787,-10000.01,0.00015144,2]
[398249786,1765463388729,-10000.01,0.00015144,2]
[398249787,1765463388845,-10000.01,0.00015144,2]
[398249788,1765463388993,-10000.01,0.00015144,2]
[398249790,1765463392032,-10000.01,0.00015144,2]
[398249793,1765463392240,-10000.01,0.00015144,2]
[398249794,1765463398726,-10000.01,0.00015144,2]
[398249795,1765463398840,-10000.01,0.00015144,2]
[398249796,1765463399030,-10000.01,0.00015144,2]
[398249797,1765463402739,-300.0,0.00015143,2]
[398249798,1765463402773,-1200.0,0.00015143,2]
[398249799,1765463402804,-300.0,0.00015143,2]
[398249800,1765463402822,-300.0,0.00015144,2]
[398249801,1765463402833,-1200.0,0.00015144,2]
[398249802,1765463402844,-300.0,0.00015144,2]
[398249803,1765463402854,-6400.01,0.00015144,2]
[398249804,1765463402874,-10000.01,0.00015144,2]
[398249817,1765463431348,-263.21289477,0.00015143,2]
[398249818,1765463431359,-36.78710523,0.00015143,2]
[398249819,1765463431369,-141467.1377,0.00015144,2]
[398249820,1765463431378,-1000.0,0.00015144,2]
[398249821,1765463431388,-2006.5649,0.00015144,2]
[398249822,1765463431397,-195.0,0.00015158,2]
[398249823,1765463431407,-300.0,0.000152,2]
[398249824,1765463431416,-151.0,0.00015235,2]
[398249825,1765463431427,-500.0,0.00015235,2]
[398249826,1765463431436,-500.0,0.00015235,2]
[398249827,1765463431445,-500.0,0.00015235,2]
[398249828,1765463431454,-1111.0,0.00015235,2]
[398249829,1765463431463,-500.0,0.00015235,2]
[398249830,1765463431472,-500.0,0.00015235,2]
[398249831,1765463431481,-500.0,0.00015235,2]
[398249832,1765463431492,-500.0,0.00015235,2]
[398249833,1765463431502,-500.0,0.00015235,2]
[398249834,1765463431511,-500.0,0.00015235,2]
[398249835,1765463431521,-500.0,0.00015235,2]
[398249836,1765463431530,-500.0,0.00015235,2]
[398249837,1765463431539,-300.0,0.00015235,2]
[398249838,1765463431548,-1000.0,0.00015243,2]
[398249839,1765463431557,-185.28850999,0.00015243,2]
[398249840,1765463431567,-500.0,0.00015243,2]
[398249841,1765463431576,-470.74752866,0.00015243,2]
[398249842,1765463431585,-1000.0,0.00015298,3]
[398249843,1765463431595,-169.31,0.000153,2]
[398249844,1765463431604,-756.73,0.00015335,2]
[398249845,1765463431613,-500.0,0.00015342,2]
[398249846,1765463431623,-458.20777034,0.00015343,2]
[398249847,1765463431632,-1000.0,0.00015343,2]
[398249848,1765463431643,-200.0,0.00015344,2]
[398249849,1765463431652,-689.69261819,0.00015344,2]
[398249852,1765463431661,-1000.0,0.00015359,2]
[398249854,1765463431682,-160.94,0.00015371,2]
[398249855,1765463431691,-1852.42,0.00015379,2]
[398249856,1765463431701,-200.0,0.00015398,2]
[398249857,1765463431711,-166.66,0.00015422,2]
[398249858,1765463431722,-500.0,0.00015425,2]
[398249859,1765463431736,-2751.0,0.00015426,2]
[398249860,1765463431745,-999.0,0.0001543,3]
[398249861,1765463431755,-500.0,0.00015443,2]
[398249862,1765463431765,-200.0,0.00015445,2]
[398249863,1765463431774,-168.0,0.00015449,2]
[398249864,1765463431784,-12027.05210372,0.00015475,2]
[398249865,1765463431794,-1126.22,0.00015479,2]
[398249866,1765463431804,-150.0,0.00015485,2]
[398249867,1765463431814,-500.0,0.00015507,2]
[398249868,1765463431823,-168.0,0.00015513,2]
[398249869,1765463431833,-168.0,0.0001558,2]
[398249870,1765463431844,-166.66,0.00015597,2]
[398249871,1765463431854,-756.73,0.00015609,2]
[398249872,1765463431863,-3011.47,0.00015613,2]
[398249873,1765463431873,-168.0,0.0001564,2]
[398249874,1765463431883,-500.0,0.00015643,2]
[398249875,1765463431893,-500.0,0.00015643,2]
[398249876,1765463431903,-500.0,0.00015643,2]
[398249877,1765463431913,-397.57367306,0.00015644,2]
[398249878,1765463431923,-1000.0,0.00015657,2]
[398249879,1765463431933,-168.0,0.00015665,2]
[398249880,1765463431943,-1227.46846831,0.00015672,2]
[398249881,1765463431953,-12027.05210372,0.00015778,2]
[398249882,1765463431963,-168.0,0.00015781,2]
[398249883,1765463431973,-1111.0,0.00015783,2]
[398249884,1765463431982,-168.0,0.0001582,2]
[398249885,1765463431996,-212.36686482,0.00015837,2]
[398249886,1765463432006,-168.0,0.00015852,2]
[398249887,1765463432016,-756.73,0.00015883,2]
[398249888,1765463432026,-166.66,0.00015905,2]
[398249889,1765463432035,-168.0,0.00015915,2]
[398249890,1765463432045,-168.0,0.00016008,2]
[398249891,1765463432055,-166.66,0.00016033,2]
[398249892,1765463432065,-168.0,0.00016059,2]
[398249893,1765463432074,-168.0,0.00016069,2]
[398249894,1765463432084,-12027.05210372,0.00016081,2]
[398249895,1765463432094,-327.76056727,0.0001609,2]
[398249896,1765463432104,-756.73,0.00016157,2]
[398249897,1765463432114,-168.0,0.0001619,2]
[398249898,1765463432123,-150.0,0.000162,2]
[398249899,1765463432133,-150.0,0.000162,2]
[398249900,1765463432143,-150.0,0.000162,2]
[398249901,1765463432153,-150.0,0.000162,2]
[398249902,1765463432163,-150.0,0.000162,2]
[398249903,1765463432172,-150.0,0.000162,2]
[398249904,1765463432182,-150.0,0.000162,2]
[398249905,1765463432192,-150.0,0.000162,2]
[398249906,1765463432202,-150.0,0.000162,2]
[398249907,1765463432212,-150.0,0.000162,2]
[398249908,1765463432222,-150.0,0.000162,2]
[398249909,1765463432232,-166.66,0.00016214,2]
[398249910,1765463432247,-510.0,0.00016264,2]
[398249911,1765463432257,-168.0,0.00016264,2]
[398249912,1765463432266,-168.0,0.00016291,2]
[398249913,1765463432276,-150.0,0.00016306,2]
[398249914,1765463432288,-1111.0,0.00016331,2]
[398249915,1765463432298,-150.0,0.00016338,2]
[398249916,1765463432309,-168.0,0.00016362,2]
[398249917,1765463432319,-11515.99453001,0.00016384,2]
[398249918,1765463432337,-511.05757371,0.00016384,2]
[398249919,1765463432347,-150.0,0.000164,2]
[398249920,1765463432357,-150.0,0.00016412,2]
[398249921,1765463432368,-150.0,0.00016425,2]
[398249922,1765463432379,-756.73,0.00016431,2]
[398249923,1765463432389,-500.0,0.00016438,2]
[398249924,1765463432399,-500.0,0.00016438,2]
[398249925,1765463432409,-500.0,0.00016438,2]
[398249926,1765463432419,-500.0,0.00016438,2]
[398249927,1765463432429,-500.0,0.00016438,2]
[398249928,1765463432438,-500.0,0.00016438,2]
[398249929,1765463432448,-175.17744062,0.00016438,2]
[398249930,1765463432457,-7184.67,0.00016438,2]
[398249931,1765463432467,-150.0,0.00016457,2]
[398249932,1765463432476,-150.0,0.00016457,2]
[398249933,1765463432488,-18.79623476,0.00016457,2]
[398249934,1765463432504,-131.20376524,0.00016457,2]
[398249935,1765463432513,-150.0,0.00016477,2]
[398249936,1765463432522,-150.0,0.00016518,2]
[398249937,1765463432533,-420.0,0.00016571,2]
[398249938,1765463432542,-420.0,0.00016571,2]
[398249939,1765463432552,-168.0,0.00016574,2]
[398249940,1765463432561,-6.17977951,0.000166,2]
[398249941,1765463432577,-143.82022049,0.000166,2]
[398249942,1765463432586,-189.62587265,0.00016604,2]
[398249943,1765463432594,-311.1,0.00016604,2]
[398249944,1765463432603,-150.0,0.00016615,2]
[398249945,1765463432613,-150.0,0.00016624,2]
[398249946,1765463432622,-168.0,0.00016641,2]
[398249947,1765463432631,-166.66,0.00016644,2]
[398249948,1765463432640,-150.0,0.0001665,2]
[398249949,1765463432649,-160.94,0.00016652,2]
[398249950,1765463432658,-175.71769919,0.00016655,2]
[398249951,1765463432669,-546.09187063,0.00016655,2]
[398249952,1765463432680,-958.19043018,0.00016655,2]
[398249953,1765463432689,-300.0,0.00016657,2]